fUSD/lending_fUSD_20250519
["ID","MTS","AMOUNT","RATE_DAILY","PERIOD"]
[361592678,1747627862015,-400.0,0.00013917,2]
[361592679,1747627862023,-400.0,0.00013917,2]
[361592680,1747627862033,-151.0,0.00013917,2]
[361592681,1747627862042,-245.327588,0.00013917,2]
[361592682,1747627862051,-400.0,0.00013917,2]
[361592683,1747627862060,-535.39,0.00013917,2]
[361592684,1747627862069,-400.0,0.00013917,2]
[361592685,1747627862078,-400.0,0.00013917,2]
[361592686,1747627862088,-693.26,0.00013917,2]
[361592687,1747627862097,-400.0,0.00013917,2]
[361592688,1747627862106,-1021.13,0.00013917,2]
[361592689,1747627862115,-538.75,0.00013917,2]
[361592690,1747627862124,-151.0,0.00013917,2]
[361592691,1747627862134,-205.84526,0.00013917,2]
[361592692,1747627862143,-151.0,0.00013917,2]
[361592693,1747627862152,-151.0,0.00013917,2]
[361592694,1747627862161,-400.0,0.00013917,2]
[361592695,1747627862170,-859.17,0.00013917,2]
[361592696,1747627862183,-400.0,0.00013917,2]
[361592697,1747627862192,-400.0,0.00013917,2]
[361592698,1747627862202,-400.45,0.00013917,2]
[361592699,1747627862211,-828.25,0.00013917,2]
[361592700,1747627862221,-400.0,0.00013917,2]
[361592701,1747627862230,-400.0,0.00013917,2]
[361592702,1747627862239,-400.0,0.00013917,2]
[361592703,1747627862249,-425.66,0.00013917,2]
[361592704,1747627862259,-767.56,0.00013917,2]
[361592705,1747627862268,-252.08758045,0.00013917,2]
[361592706,1747627862277,-331.30324824,0.00013917,2]
[361592707,1747627862286,-995.26,0.00013917,2]
[361592708,1747627862295,-409.13,0.00013917,2]
[361592709,1747627862305,-757.92,0.00013917,2]
[361592710,1747627862314,-699.57,0.00013917,2]
[361592711,1747627862323,-400.0,0.00013917,2]
[361592712,1747627862333,-400.0,0.00013917,2]
[361592713,1747627862342,-409.65599488,0.00013917,2]
[361592714,1747627862351,-409.24408503,0.00013917,2]
[361592715,1747627862361,-400.0,0.00013917,2]
[361592716,1747627862370,-151.0,0.00013917,2]
[361592717,1747627862379,-1473.96,0.00013917,2]
[361592718,1747627862389,-151.0,0.00013917,2]
[361592719,1747627862398,-581.34,0.00013917,2]
[361592720,1747627862407,-746.04,0.00013917,2]
[361592721,1747627862416,-1110.92,0.00013917,2]
[361592722,1747627862429,-424.89,0.00013917,2]
[361592723,1747627862439,-400.0,0.00013917,2]
[361592724,1747627862449,-400.0,0.00013917,2]
[361592725,1747627862458,-400.0,0.00013917,2]
[361592726,1747627862468,-400.0,0.00013917,2]
[361592727,1747627862479,-590.96,0.00013917,2]
[361592728,1747627862489,-400.0,0.00013917,2]
[361592729,1747627862498,-538.34,0.00013917,2]
[361592730,1747627862509,-400.0,0.00013917,2]
[361592731,1747627862518,-400.0,0.00013917,2]
[361592732,1747627862528,-467.55,0.00013917,2]
[361592733,1747627862538,-400.0,0.00013917,2]
[361592734,1747627862548,-450.67,0.00013917,2]
[361592735,1747627862559,-400.0,0.00013917,2]
[361592736,1747627862569,-400.0,0.00013917,2]
[361592737,1747627862578,-400.0,0.00013917,2]
[361592738,1747627862587,-151.0,0.00013917,2]
[361592739,1747627862597,-151.0,0.00013917,2]
[361592740,1747627862607,-400.0,0.00013917,2]
[361592741,1747627862617,-151.0,0.00013917,2]
[361592742,1747627862626,-400.0,0.00013917,2]
[361592743,1747627862636,-664.84,0.00013917,2]
[361592744,1747627862645,-151.0,0.00013917,2]
[361592745,1747627862655,-416.0008729,0.00013917,2]
[361592746,1747627862665,-400.0,0.00013917,2]
[361592747,1747627862674,-400.0,0.00013917,2]
[361592748,1747627862691,-400.0,0.00013917,2]
[361592749,1747627862700,-516.28,0.00013917,2]
[361592750,1747627862709,-460.73,0.00013917,2]
[361592751,1747627862718,-918.76,0.00013917,2]
[361592752,1747627862728,-442.33,0.00013917,2]
[361592753,1747627862738,-400.0,0.00013917,2]
[361592754,1747627862747,-151.0,0.00013917,2]
[361592755,1747627862756,-151.0,0.00013917,2]
[361592756,1747627862767,-400.0,0.00013917,2]
[361592757,1747627862777,-874.65,0.00013917,2]
[361592758,1747627862787,-151.0,0.00013917,2]
[361592759,1747627862797,-151.0,0.00013917,2]
[361592760,1747627862806,-540.22,0.00013917,2]
[361592761,1747627862819,-151.0,0.00013917,2]
[361592762,1747627862829,-400.0,0.00013917,2]
[361592763,1747627862839,-151.0,0.00013917,2]
[361592764,1747627862848,-621.63,0.00013917,2]
[361592765,1747627862858,-400.0,0.00013917,2]
[361592766,1747627862868,-151.0,0.00013917,2]
[361592767,1747627862879,-151.0,0.00013917,2]
[361592768,1747627862889,-400.0,0.00013917,2]
[361592769,1747627862905,-151.0,0.00013917,2]
[361592770,1747627862915,-151.0,0.00013917,2]
[361592771,1747627862931,-400.0,0.00013917,2]
[361592772,1747627862941,-400.0,0.00013917,2]
[361592773,1747627862951,-506.64,0.00013917,2]
[361592774,1747627862961,-400.0,0.00013917,2]
[361592775,1747627862971,-1347.71,0.00013917,2]
[361592776,1747627862981,-514.23,0.00013917,2]
[361592777,1747627862992,-1086.0,0.00013917,2]
[361592778,1747627863002,-771.57,0.00013917,2]
[361592779,1747627863013,-407.81,0.00013917,2]
[361592780,1747627863022,-727.92,0.00013917,2]
[361592781,1747627863032,-1860.20015275,0.00013917,2]
[361592782,1747627863151,-395.40984725,0.00013917,2]
[361592783,1747627863161,-237.79015275,0.00013917,2]
[361592784,1747627863688,-400.0,0.00013698,2]
[361592785,1747627863698,-385.37326774,0.00013698,2]
[361592786,1747627863775,-14.62673226,0.00013698,2]
[361592787,1747627863785,-400.0,0.00013698,2]
[361592788,1747627863795,-400.0,0.00013698,2]
[361592789,1747627863804,-400.0,0.00013698,2]
[361592790,1747627863814,-168.84,0.00013808,2]
[361592791,1747627863833,-106.96232219,0.00013808,2]
[361592792,1747627863847,-293.03767781,0.00013808,2]
[361592793,1747627863857,-400.0,0.00013808,2]
[361592794,1747627863867,-55.68231619,0.00013917,2]
[361592795,1747627863924,-106.52753106,0.00013917,2]
[361592796,1747627863937,-639.99,0.00013917,2]
[361592797,1747627863946,-198.48246894,0.00013917,2]
[361592798,1747627863964,-398.69753106,0.00013917,2]
[361592799,1747627863974,-400.0,0.00013917,2]
[361592800,1747627863984,-400.0,0.00013917,2]
[361592801,1747627863994,-1334.94,0.00013917,2]
[361592802,1747627864005,-594.65,0.00013917,2]
[361592803,1747627864015,-811.57,0.00013917,2]
[361592804,1747627864025,-1028.01,0.00013917,2]
[361592805,1747627864036,-400.0,0.00013917,2]
[361592806,1747627864045,-466.45,0.00013917,2]
[361592807,1747627864055,-400.0,0.00013917,2]
[361592808,1747627864065,-400.0,0.00013917,2]
[361592809,1747627864074,-400.0,0.00013917,2]
[361592810,1747627864084,-858.76,0.00013917,2]
[361592811,1747627864094,-400.0,0.00013917,2]
[361592812,1747627864104,-1337.58,0.00013917,2]
[361592813,1747627864114,-940.375528,0.00013917,2]
[361592814,1747627864124,-940.375528,0.00013917,2]
[361592815,1747627864134,-621.63,0.00013917,2]
[361592816,1747627864144,-551.88,0.00013917,2]
[361592817,1747627864154,-577.06,0.00013917,2]
[361592818,1747627864164,-400.0,0.00013917,2]
[361592819,1747627864173,-618.51,0.00013917,2]
[361592820,1747627864187,-940.375528,0.00013917,2]
[361592821,1747627864197,-400.0,0.00013917,2]
[361592822,1747627864206,-930.19588494,0.00013917,2]
[361592823,1747627864219,-10.17964306,0.00013917,2]
[361592824,1747627864228,-400.0,0.00013917,2]
[361592825,1747627864239,-1194.96,0.00013917,2]
[361592826,1747627864249,-1295.85,0.00013917,2]
[361592827,1747627864259,-2477.03,0.00013917,2]
[361592828,1747627864270,-400.0,0.00013917,2]
[361592829,1747627864280,-410.31,0.00013917,2]
[361592830,1747627864290,-1057.64,0.00013917,2]
[361592831,1747627864300,-6386.78,0.00013917,2]
[361592832,1747627864310,-400.0,0.00013917,2]
[361592833,1747627864320,-985.08,0.00013917,2]
[361592834,1747627864329,-400.0,0.00013917,2]
[361592835,1747627864339,-254.021774,0.00013917,2]
[361592836,1747627864349,-254.021774,0.00013917,2]
[361592837,1747627864358,-745.69,0.00013917,2]
[361592838,1747627864368,-400.0,0.00013917,2]
[361592839,1747627864378,-651.08,0.00013917,2]
[361592840,1747627864388,-254.021774,0.00013917,2]
[361592841,1747627864399,-254.021774,0.00013917,2]
[361592842,1747627864409,-556.12,0.00013917,2]
[361592843,1747627864419,-400.0,0.00013917,2]
[361592844,1747627864431,-400.0,0.00013917,2]
[361592845,1747627864442,-746.83,0.00013917,2]
[361592846,1747627864451,-661.01,0.00013917,2]
[361592847,1747627864461,-400.0,0.00013917,2]
[361592848,1747627864471,-400.0,0.00013917,2]
[361592849,1747627864481,-400.0,0.00013917,2]
[361592850,1747627864492,-1091.86,0.00013917,2]
[361592851,1747627864503,-611.79,0.00013917,2]
[361592852,1747627864513,-463.96,0.00013917,2]
[361592853,1747627864523,-7379.46,0.00013917,2]
[361592854,1747627864534,-400.0,0.00013917,2]
[361592855,1747627864544,-1097.61,0.00013917,2]
[361592856,1747627864553,-2386.63,0.00013917,2]
[361592857,1747627864563,-151.0,0.00013917,2]
[361592858,1747627864573,-151.0,0.00013917,2]
[361592859,1747627864583,-9567.38,0.00013917,2]
[361592860,1747627864593,-2435.12,0.00013917,2]
[361592861,1747627864602,-1255.96,0.00013917,2]
[361592862,1747627864807,-487.99,0.00013917,2]
[361592863,1747627864826,-400.0,0.00013917,2]
[361592864,1747627864837,-860.45,0.00013917,2]
[361592865,1747627864846,-400.0,0.00013917,2]
[361592866,1747627864856,-400.0,0.00013917,2]
[361592867,1747627864866,-400.0,0.00013917,2]
[361592868,1747627864876,-593.08,0.00013917,2]
[361592869,1747627864885,-151.0,0.00013917,2]
[361592870,1747627864895,-151.0,0.00013917,2]
[361592871,1747627864905,-1559.81,0.00013917,2]
[361592872,1747627864915,-1152.2,0.00013917,2]
[361592873,1747627864924,-799.58,0.00013917,2]
[361592874,1747627864934,-400.0,0.00013917,2]
[361592875,1747627864944,-400.0,0.00013917,2]
[361592876,1747627864954,-439.19,0.00013917,2]
[361592877,1747627864964,-1023.7,0.00013917,2]
[361592878,1747627864973,-1596.258414,0.00013917,2]
[361592879,1747627864983,-1242.97,0.00013917,2]
[361592880,1747627864993,-1596.258414,0.00013917,2]
[361592881,1747627865003,-7091.95,0.00013917,2]
[361592882,1747627865012,-1273.16,0.00013917,2]
[361592883,1747627865021,-1366.63,0.00013917,2]
[361592884,1747627865031,-1596.258414,0.00013917,2]
[361592885,1747627865040,-1596.258414,0.00013917,2]
[361592886,1747627865049,-406.07785822,0.00013917,2]
[361592887,1747627865059,-151.0,0.00013917,2]
[361592888,1747627865068,-151.0,0.00013917,2]
[361592889,1747627865077,-3948.79,0.00013917,2]
[361592890,1747627865087,-400.0,0.00013917,2]
[361592891,1747627865097,-400.0,0.00013917,2]
[361592892,1747627865107,-400.0,0.00013917,2]
[361592893,1747627865117,-400.0,0.00013917,2]
[361592894,1747627865126,-624.89,0.00013917,2]
[361592895,1747627865136,-742.85,0.00013917,2]
[361592896,1747627865146,-635.6,0.00013917,2]
[361592897,1747627865155,-1783.18,0.00013917,2]
[361592898,1747627865164,-1745.5,0.00013917,2]
[361592899,1747627865174,-927.81,0.00013917,2]
[361592900,1747627865189,-1043.8,0.00013917,2]
[361592901,1747627865199,-408.68,0.00013917,2]
[361592902,1747627865209,-7358.94,0.00013917,2]
[361592903,1747627865218,-596.18,0.00013917,2]
[361592904,1747627865228,-3519.99,0.00013917,2]
[361592905,1747627865237,-2578.14,0.00013917,2]
[361592906,1747627865247,-982.48,0.00013917,2]
[361592907,1747627865257,-1260.88,0.00013917,2]
[361592908,1747627865267,-502.28,0.00013917,2]
[361592909,1747627865276,-400.0,0.00013917,2]
[361592910,1747627865286,-400.0,0.00013917,2]
[361592911,1747627865295,-151.0,0.00013917,2]
[361592912,1747627865305,-151.0,0.00013917,2]
[361592913,1747627865314,-1462.58,0.00013917,2]
[361592914,1747627865324,-400.0,0.00013917,2]
[361592915,1747627865333,-463.77,0.00013917,2]
[361592916,1747627865343,-588.25,0.00013917,2]
[361592917,1747627865354,-400.0,0.00013917,2]
[361592918,1747627865364,-400.0,0.00013917,2]
[361592919,1747627865373,-400.0,0.00013917,2]
[361592920,1747627865383,-400.0,0.00013917,2]
[361592921,1747627865393,-710.24,0.00013917,2]
[361592922,1747627865403,-2196.0,0.00013917,2]
[361592923,1747627865413,-1745.17,0.00013917,2]
[361592924,1747627865422,-400.0,0.00013917,2]
[361592925,1747627865436,-400.0,0.00013917,2]
[361592926,1747627865445,-400.0,0.00013917,2]
[361592927,1747627865455,-1009.09,0.00013917,2]
[361592928,1747627865465,-969.85,0.00013917,2]
[361592929,1747627865475,-400.0,0.00013917,2]
[361592930,1747627865484,-420.6,0.00013917,2]
[361592931,1747627865494,-1184.5,0.00013917,2]
[361592932,1747627865503,-2535.63,0.00013917,2]
[361592933,1747627865513,-4485.19,0.00013917,2]
[361592934,1747627865522,-1219.61,0.00013917,2]
[361592935,1747627865531,-409.32393217,0.00013917,2]
[361592936,1747627865541,-400.0,0.00013917,2]
[361592937,1747627865550,-1027.33,0.00013917,2]
[361592938,1747627865560,-151.0,0.00013917,2]
[361592939,1747627865570,-151.0,0.00013917,2]
[361592940,1747627865579,-424.22,0.00013917,2]
[361592941,1747627865590,-400.0,0.00013917,2]
[361592942,1747627865599,-1200.99,0.00013917,2]
[361592943,1747627865610,-744.43,0.00013917,2]
[361592944,1747627865620,-521.74,0.00013917,2]
[361592945,1747627865629,-1151.15,0.00013917,2]
[361592946,1747627865638,-86939.55,0.00013917,2]
[361592947,1747627865647,-400.0,0.00013917,2]
[361592948,1747627865657,-433.16,0.00013917,2]
[361592949,1747627865666,-632.71,0.00013917,2]
[361592950,1747627865679,-151.0,0.00013917,2]
[361592951,1747627865689,-401.62,0.00013917,2]
[361592952,1747627865698,-886.8,0.00013917,2]
[361592953,1747627865708,-151.0,0.00013917,2]
[361592954,1747627865718,-514.63,0.00013917,2]
[361592955,1747627865728,-400.0,0.00013917,2]
[361592956,1747627865737,-1098.35,0.00013917,2]
[361592957,1747627865747,-3496.71,0.00013917,2]
[361592958,1747627865757,-400.0,0.00013917,2]
[361592959,1747627865767,-400.0,0.00013917,2]
[361592960,1747627865777,-400.0,0.00013917,2]
[361592961,1747627865787,-928.73,0.00013917,2]
[361592962,1747627865796,-827.07,0.00013917,2]
[361592963,1747627865805,-962.76,0.00013917,2]
[361592964,1747627865815,-777.16,0.00013917,2]
[361592965,1747627865825,-540.83,0.00013917,2]
[361592966,1747627865836,-442.07,0.00013917,2]
[361592967,1747627865846,-3923.43,0.00013917,2]
[361592968,1747627865855,-400.0,0.00013917,2]
[361592969,1747627865864,-793.33,0.00013917,2]
[361592970,1747627865874,-610.23,0.00013917,2]
[361592971,1747627865883,-400.0,0.00013917,2]
[361592972,1747627865893,-400.0,0.00013917,2]
[361592973,1747627865903,-3907.5,0.00013917,2]
[361592974,1747627865912,-1271.46,0.00013917,2]
[361592975,1747627865922,-400.0,0.00013917,2]
[361592976,1747627865935,-907.16,0.00013917,2]
[361592977,1747627865944,-776.72,0.00013917,2]
[361592978,1747627865954,-1599.08,0.00013917,2]
[361592979,1747627865963,-4865.63,0.00013917,2]
[361592980,1747627865973,-2367.53,0.00013917,2]
[361592981,1747627865983,-400.0,0.00013917,2]
[361592982,1747627865993,-2943.83922708,0.00013917,2]
[361592983,1747627866007,-586.39999892,0.00013917,2]
[361592984,1747627866019,-6199.2396,0.00013917,2]
[361592985,1747628228540,-850.0,0.00012855,2]
[361592986,1747628272823,-2400.0,0.00012855,2]
[361592988,1747628359581,-188.93,0.00012785,2]
[361592989,1747628359605,-1382.22,0.00012855,2]
[361592990,1747628359628,-190.27,0.00012928,2]
[361592991,1747628359652,-300.0,0.00012999,2]
[361592992,1747628359675,-300.0,0.00012999,2]
[361592993,1747628359698,-1860.41,0.00013,2]
[361592994,1747628359723,-1860.41,0.00013,2]
[361592995,1747628359747,-1860.41,0.00013,2]
[361592996,1747628359771,-1860.41,0.00013,2]
[361592997,1747628359793,-1860.41,0.00013,2]
[361592998,1747628359816,-202.0,0.00013415,2]
[361592999,1747628359839,-165.3,0.00013493,2]
[361593000,1747628359863,-200.0,0.00013545,2]
[361593001,1747628359886,-150.0,0.00013597,2]
[361593002,1747628360139,-1462.12260444,0.00013598,2]
[361593003,1747628360186,-964.99935633,0.00013598,2]
[361593004,1747628360211,-180.87521621,0.00013598,2]
[361593005,1747628360235,-562.70069489,0.00013598,2]
[361593006,1747628360259,-2123.0534,0.00013598,2]
[361593007,1747628360283,-1462.1226044,0.00013632,2]
[361593008,1747628360308,-964.99935624,0.00013632,2]
[361593009,1747628360334,-1462.1226044,0.00013665,2]
[361593010,1747628360357,-964.99935624,0.00013665,2]
[361593011,1747628360381,-180.87521619,0.00013674,2]
[361593012,1747628360404,-1200.0,0.00013696,2]
[361593013,1747628360431,-203.94364358,0.00013697,2]
[361593014,1747628360455,-330.2597268,0.00013697,2]
[361593015,1747628360478,-1300.679,0.00013697,2]
[361593016,1747628360503,-400.0,0.00013698,2]
[361593017,1747628360526,-400.0,0.00013698,2]
[361593018,1747628360549,-400.0,0.00013698,2]
[361593019,1747628360572,-400.0,0.00013698,2]
[361593020,1747628360595,-400.0,0.00013698,2]
[361593021,1747628360619,-400.0,0.00013698,2]
[361593022,1747628360642,-400.0,0.00013698,2]
[361593023,1747628360664,-1099.57,0.00013698,2]
[361593024,1747628360686,-495.08,0.00013698,2]
[361593025,1747628360709,-400.0,0.00013698,2]
[361593026,1747628360731,-406.38,0.00013698,2]
[361593027,1747628360753,-605.67,0.00013698,2]
[361593028,1747628360776,-400.0,0.00013698,2]
[361593029,1747628360799,-400.0,0.00013698,2]
[361593030,1747628360823,-713.49,0.00013698,2]
[361593031,1747628360846,-400.0,0.00013698,2]
[361593032,1747628360869,-400.0,0.00013698,2]
[361593033,1747628360892,-580.14,0.00013698,2]
[361593034,1747628360915,-619.11,0.00013698,2]
[361593035,1747628360938,-400.0,0.00013698,2]
[361593036,1747628360961,-400.0,0.00013698,2]
[361593037,1747628360985,-400.0,0.00013698,2]
[361593038,1747628361008,-400.0,0.00013698,2]
[361593039,1747628361032,-400.0,0.00013698,2]
[361593040,1747628361055,-435.64,0.00013698,2]
[361593041,1747628361082,-400.0,0.00013698,2]
[361593042,1747628361105,-680.3,0.00013698,2]
[361593043,1747628361130,-679.81,0.00013698,2]
[361593044,1747628361156,-400.0,0.00013698,2]
[361593045,1747628361180,-681.89,0.00013698,2]
[361593046,1747628361207,-468.03,0.00013698,2]
[361593047,1747628361229,-400.44,0.00013698,2]
[361593048,1747628361252,-400.0,0.00013698,2]
[361593049,1747628361274,-400.0,0.00013698,2]
[361593050,1747628361297,-400.0,0.00013698,2]
[361593051,1747628361321,-400.0,0.00013698,2]
[361593052,1747628361346,-434.01,0.00013698,2]
[361593053,1747628361369,-444.63,0.00013698,2]
[361593054,1747628361392,-408.87,0.00013698,2]
[361593055,1747628361416,-752.49,0.00013698,2]
[361593056,1747628361439,-400.0,0.00013698,2]
[361593057,1747628361464,-400.0,0.00013698,2]
[361593058,1747628361487,-400.0,0.00013698,2]
[361593059,1747628361512,-400.0,0.00013698,2]
[361593060,1747628361536,-425.16,0.00013698,2]
[361593061,1747628361559,-915.48,0.00013698,2]
[361593062,1747628361584,-557.23,0.00013698,2]
[361593063,1747628361606,-400.0,0.00013698,2]
[361593064,1747628361630,-400.0,0.00013698,2]
[361593065,1747628361654,-400.0,0.00013698,2]
[361593066,1747628361676,-979.26,0.00013698,2]
[361593067,1747628361699,-400.0,0.00013698,2]
[361593068,1747628361721,-400.0,0.00013698,2]
[361593069,1747628361744,-400.0,0.00013698,2]
[361593070,1747628361767,-584.24,0.00013698,2]
[361593071,1747628361793,-691.37,0.00013698,2]
[361593072,1747628361818,-400.0,0.00013698,2]
[361593073,1747628361841,-400.0,0.00013698,2]
[361593074,1747628361866,-902.94,0.00013698,2]
[361593075,1747628361888,-464.01,0.00013698,2]
[361593076,1747628361911,-579.5,0.00013698,2]
[361593077,1747628361934,-563.05,0.00013698,2]
[361593078,1747628361957,-455.63,0.00013698,2]
[361593079,1747628361982,-400.0,0.00013698,2]
[361593080,1747628362004,-400.0,0.00013698,2]
[361593081,1747628362029,-400.0,0.00013698,2]
[361593082,1747628362052,-1212.35,0.00013698,2]
[361593083,1747628362078,-506.19,0.00013698,2]
[361593084,1747628362101,-400.0,0.00013698,2]
[361593085,1747628362124,-400.0,0.00013698,2]
[361593086,1747628362151,-400.0,0.00013698,2]
[361593087,1747628362174,-449.69,0.00013698,2]
[361593088,1747628362198,-598.86,0.00013698,2]
[361593089,1747628362222,-641.99,0.00013698,2]
[361593090,1747628362246,-400.0,0.00013698,2]
[361593091,1747628362270,-661.09,0.00013698,2]
[361593092,1747628362293,-578.0,0.00013698,2]
[361593093,1747628362317,-400.0,0.00013698,2]
[361593094,1747628362341,-400.0,0.00013698,2]
[361593095,1747628362365,-400.0,0.00013698,2]
[361593096,1747628362391,-400.0,0.00013698,2]
[361593097,1747628362635,-400.0,0.00013698,2]
[361593098,1747628362659,-400.2397028,0.00013698,2]
[361593099,1747628362683,-452.66,0.00013698,2]
[361593100,1747628362707,-400.0,0.00013698,2]
[361593101,1747628362732,-656.9,0.00013698,2]
[361593102,1747628362755,-882.95,0.00013698,2]
[361593103,1747628362778,-400.0,0.00013698,2]
[361593104,1747628362801,-400.0,0.00013698,2]
[361593105,1747628362826,-824.44,0.00013698,2]
[361593106,1747628362851,-400.0,0.00013698,2]
[361593107,1747628362874,-477.83,0.00013698,2]
[361593108,1747628362899,-446.45,0.00013698,2]
[361593109,1747628362923,-400.0,0.00013698,2]
[361593110,1747628362945,-400.0,0.00013698,2]
[361593111,1747628362968,-1004.01,0.00013698,2]
[361593112,1747628362990,-1791.78,0.00013698,2]
[361593113,1747628363013,-427.62,0.00013698,2]
[361593114,1747628363035,-400.0,0.00013698,2]
[361593115,1747628363058,-520.08,0.00013698,2]
[361593116,1747628363084,-400.0,0.00013698,2]
[361593117,1747628363107,-400.0,0.00013698,2]
[361593118,1747628363131,-400.0,0.00013698,2]
[361593119,1747628363158,-400.0,0.00013698,2]
[361593120,1747628363182,-400.0,0.00013698,2]
[361593121,1747628363205,-400.0,0.00013698,2]
[361593122,1747628363230,-400.0,0.00013698,2]
[361593123,1747628363252,-637.68,0.00013698,2]
[361593124,1747628363275,-1082.17,0.00013698,2]
[361593125,1747628363299,-1126.85,0.00013698,2]
[361593126,1747628363323,-1318.69,0.00013698,2]
[361593127,1747628363347,-400.0,0.00013698,2]
[361593128,1747628363371,-982.15,0.00013698,2]
[361593129,1747628363396,-400.0,0.00013698,2]
[361593130,1747628363420,-400.0,0.00013698,2]
[361593131,1747628363443,-400.0,0.00013698,2]
[361593132,1747628363466,-400.69180158,0.00013698,2]
[361593133,1747628363490,-400.0,0.00013698,2]
[361593134,1747628363514,-499.66,0.00013698,2]
[361593135,1747628363540,-400.0,0.00013698,2]
[361593136,1747628363565,-183.01308554,0.00013698,2]
[361593137,1747628363592,-400.0,0.00013698,2]
[361593138,1747628363617,-800.14,0.00013698,2]
[361593139,1747628363642,-400.31703577,0.00013698,2]
[361593140,1747628363667,-400.0,0.00013698,2]
[361593141,1747628363692,-400.0,0.00013698,2]
[361593142,1747628363716,-612.25,0.00013698,2]
[361593143,1747628363741,-401.69128635,0.00013698,2]
[361593144,1747628363767,-400.0,0.00013698,2]
[361593145,1747628363793,-400.0,0.00013698,2]
[361593146,1747628363819,-400.0,0.00013698,2]
[361593147,1747628363853,-856.09,0.00013698,2]
[361593148,1747628363878,-729.15,0.00013698,2]
[361593149,1747628363903,-897.49,0.00013698,2]
[361593150,1747628363927,-400.0,0.00013698,2]
[361593151,1747628363952,-549.56,0.00013698,2]
[361593152,1747628363976,-400.0,0.00013698,2]
[361593153,1747628364001,-400.0,0.00013698,2]
[361593154,1747628364025,-400.0,0.00013698,2]
[361593155,1747628364049,-400.0,0.00013698,2]
[361593156,1747628364073,-859.43,0.00013698,2]
[361593157,1747628364100,-400.0,0.00013698,2]
[361593158,1747628364125,-959.63,0.00013698,2]
[361593159,1747628364158,-400.0,0.00013698,2]
[361593160,1747628364184,-400.0,0.00013698,2]
[361593161,1747628364208,-400.0,0.00013698,2]
[361593162,1747628364234,-400.0,0.00013698,2]
[361593163,1747628364258,-400.0,0.00013698,2]
[361593164,1747628364282,-400.0,0.00013698,2]
[361593165,1747628364307,-1240.15,0.00013698,2]
[361593166,1747628364334,-400.0,0.00013698,2]
[361593167,1747628364359,-400.0,0.00013698,2]
[361593168,1747628364385,-910.216037,0.00013698,2]
[361593169,1747628364411,-400.0,0.00013698,2]
[361593170,1747628364437,-502.3098301,0.00013698,2]
[361593171,1747628364463,-516.27,0.00013698,2]
[361593172,1747628364490,-400.0,0.00013698,2]
[361593173,1747628364517,-400.30334358,0.00013698,2]
[361593174,1747628364542,-400.0,0.00013698,2]
[361593175,1747628364567,-400.0,0.00013698,2]
[361593176,1747628364595,-659.56,0.00013698,2]
[361593177,1747628364621,-400.0,0.00013698,2]
[361593178,1747628364645,-400.0,0.00013698,2]